[Event "*** Titled Tuesday Blitz"]
[Site "Chess.com"]
[Date "2020.05.19"]
[Round "3"]
[White "Noam_Vitenberg"]
[Black "EfM13"]
[Result "1/2-1/2"]
[WhiteElo "2434"]
[BlackElo "2239"]
[TimeControl "180+1"]
[EndTime "12:30:15 PDT"]
[Termination "Game drawn - timeout vs insufficient material"]

1. d4 {[%clk 0:03:00.9]} 1... d6 {[%clk 0:02:59.8]} 2. Nf3 {[%clk 0:02:59.4]}
2... g6 {[%clk 0:02:56.6]} 3. e4 {[%clk 0:02:58.9]} 3... Bg7 {[%clk 0:02:56.7]}
4. Be3 {[%clk 0:02:58.8]} 4... Nf6 {[%clk 0:02:56.8]} 5. Nc3 {[%clk 0:02:58.1]}
5... h6 {[%clk 0:02:56.6]} 6. Qd2 {[%clk 0:02:57.4]} 6... Nbd7 {[%clk
0:02:55.5]} 7. e5 {[%clk 0:02:52.1]} 7... Ng4 {[%clk 0:02:54.1]} 8. Bf4 {[%clk
0:02:49.2]} 8... dxe5 {[%clk 0:02:53.5]} 9. dxe5 {[%clk 0:02:49.7]} 9... Ngxe5
{[%clk 0:02:50.5]} 10. Nxe5 {[%clk 0:02:42.5]} 10... Nxe5 {[%clk 0:02:50.4]} 11.
Qxd8+ {[%clk 0:02:22.9]} 11... Kxd8 {[%clk 0:02:49.5]} 12. O-O-O+ {[%clk
0:02:22.8]} 12... Bd7 {[%clk 0:02:49.1]} 13. Be2 {[%clk 0:02:16.1]} 13... e6
{[%clk 0:02:37.5]} 14. Ne4 {[%clk 0:02:13.3]} 14... Ke7 {[%clk 0:02:36]} 15. Be3
{[%clk 0:02:11.3]} 15... b6 {[%clk 0:02:31.6]} 16. f4 {[%clk 0:02:07.2]} 16...
Bc6 {[%clk 0:02:30.8]} 17. Nc3 {[%clk 0:01:45.6]} 17... Nd7 {[%clk 0:02:27.9]}
18. Rhg1 {[%clk 0:01:38.6]} 18... a6 {[%clk 0:02:18.2]} 19. g4 {[%clk
0:01:35.6]} 19... Nf6 {[%clk 0:02:16.9]} 20. f5 {[%clk 0:01:35.1]} 20... Bb7
{[%clk 0:01:58.4]} 21. Bf4 {[%clk 0:01:32.5]} 21... Ne8 {[%clk 0:01:45.3]} 22.
Bd3 {[%clk 0:01:18.6]} 22... g5 {[%clk 0:01:44.6]} 23. Bg3 {[%clk 0:01:16.3]}
23... Nd6 {[%clk 0:01:32.4]} 24. Rgf1 {[%clk 0:01:09.3]} 24... b5 {[%clk
0:01:25.2]} 25. Rde1 {[%clk 0:01:02.6]} 25... Bxc3 {[%clk 0:01:12.8]} 26. bxc3
{[%clk 0:00:59.9]} 26... Bd5 {[%clk 0:01:13.3]} 27. Kb2 {[%clk 0:00:50]} 27...
c5 {[%clk 0:01:08.2]} 28. h4 {[%clk 0:00:33.1]} 28... Rhg8 {[%clk 0:01:06.6]}
29. hxg5 {[%clk 0:00:31.7]} 29... hxg5 {[%clk 0:01:04.7]} 30. Be5 {[%clk
0:00:23.1]} 30... Raf8 {[%clk 0:00:55.3]} 31. Rd1 {[%clk 0:00:21.3]} 31... c4
{[%clk 0:00:51.7]} 32. Be2 {[%clk 0:00:20.3]} 32... f6 {[%clk 0:00:51.6]} 33.
Bg3 {[%clk 0:00:14.6]} 33... Ne4 {[%clk 0:00:50]} 34. Bh2 {[%clk 0:00:12.9]}
34... Rh8 {[%clk 0:00:49.7]} 35. Bg1 {[%clk 0:00:12.7]} 35... Ng3 {[%clk
0:00:45.6]} 36. Rfe1 {[%clk 0:00:11.2]} 36... Kf7 {[%clk 0:00:35.1]} 37. fxe6+
{[%clk 0:00:06.4]} 37... Bxe6 {[%clk 0:00:35]} 38. Bf3 {[%clk 0:00:05.3]} 38...
Rd8 {[%clk 0:00:34.3]} 39. Bd4 {[%clk 0:00:04.9]} 39... a5 {[%clk 0:00:26.2]}
40. Rd2 {[%clk 0:00:05.2]} 40... b4 {[%clk 0:00:25.1]} 41. Rf2 {[%clk
0:00:05.4]} 41... Rh4 {[%clk 0:00:20.3]} 42. Bc6 {[%clk 0:00:04.9]} 42... Rxd4
{[%clk 0:00:12.8]} 43. cxd4 {[%clk 0:00:04]} 43... c3+ {[%clk 0:00:13.1]} 44.
Ka1 {[%clk 0:00:03.4]} 44... Rxg4 {[%clk 0:00:12.6]} 45. d5 {[%clk 0:00:03.6]}
45... Bc8 {[%clk 0:00:11.9]} 46. d6 {[%clk 0:00:03.7]} 46... f5 {[%clk
0:00:10.6]} 47. d7 {[%clk 0:00:03.8]} 47... Bxd7 {[%clk 0:00:10.4]} 48. Bxd7
{[%clk 0:00:04.7]} 48... Rf4 {[%clk 0:00:04.9]} 49. Rxf4 {[%clk 0:00:04]} 49...
gxf4 {[%clk 0:00:05.1]} 50. Bc6 {[%clk 0:00:04.5]} 50... Kf6 {[%clk 0:00:04.8]}
51. Bd5 {[%clk 0:00:04.9]} 51... Kg5 {[%clk 0:00:04.2]} 52. a3 {[%clk 0:00:05]}
52... Kg4 {[%clk 0:00:03.5]} 53. axb4 {[%clk 0:00:05.2]} 53... axb4 {[%clk
0:00:04]} 54. Ka2 {[%clk 0:00:04.8]} 54... f3 {[%clk 0:00:03.5]} 55. Bc4 {[%clk
0:00:04.9]} 55... f2 {[%clk 0:00:03.5]} 56. Rd1 {[%clk 0:00:04.6]} 56... Kf3
{[%clk 0:00:03.3]} 57. Kb3 {[%clk 0:00:04.7]} 57... Kg2 {[%clk 0:00:03.4]} 58.
Kxb4 {[%clk 0:00:03.8]} 58... f1=Q {[%clk 0:00:03.4]} 59. Bxf1+ {[%clk
0:00:03.7]} 59... Nxf1 {[%clk 0:00:03.9]} 60. Kxc3 {[%clk 0:00:03.8]} 60... f4
{[%clk 0:00:04.2]} 61. Kd4 {[%clk 0:00:03.4]} 61... f3 {[%clk 0:00:04]} 62. c4
{[%clk 0:00:03]} 62... f2 {[%clk 0:00:04.1]} 63. c5 {[%clk 0:00:02.3]} 63... Nh2
{[%clk 0:00:04.1]} 64. c6 {[%clk 0:00:02.1]} 64... Nf3+ {[%clk 0:00:03.5]} 65.
Ke3 {[%clk 0:00:01.8]} 65... Kg3 {[%clk 0:00:01.8]} 66. Rf1 {[%clk 0:00:01.2]}
66... Nh2 {[%clk 0:00:02]} 67. Rxf2 {[%clk 0:00:01.4]} 67... Ng4+ {[%clk
0:00:02]} 1/2-1/2

[Event "*** Titled Tuesday Blitz"]
[Site "Chess.com"]
[Date "2020.05.19"]
[Round "3"]
[White "CalinGheorghiu"]
[Black "PauloFanha"]
[Result "1-0"]
[WhiteElo "2285"]
[BlackElo "1952"]
[TimeControl "180+1"]
[EndTime "12:30:21 PDT"]
[Termination "CalinGheorghiu won by resignation"]

1. e4 {[%clk 0:03:00.9]} 1... e6 {[%clk 0:02:59.6]} 2. d3 {[%clk 0:02:55]} 2...
c5 {[%clk 0:02:57.7]} 3. g3 {[%clk 0:02:52.5]} 3... Nc6 {[%clk 0:02:58.1]} 4.
Bg2 {[%clk 0:02:53]} 4... d5 {[%clk 0:02:54.7]} 5. Nd2 {[%clk 0:02:53.3]} 5...
Nf6 {[%clk 0:02:52]} 6. Ngf3 {[%clk 0:02:53]} 6... Bd6 {[%clk 0:02:49.4]} 7. O-O
{[%clk 0:02:53.3]} 7... a6 {[%clk 0:02:45.4]} 8. Re1 {[%clk 0:02:53.6]} 8... O-O
{[%clk 0:02:42.7]} 9. e5 {[%clk 0:02:52]} 9... Ng4 {[%clk 0:02:34.7]} 10. exd6
{[%clk 0:02:51.4]} 10... Qxd6 {[%clk 0:02:35.2]} 11. h3 {[%clk 0:02:51.7]} 11...
Nf6 {[%clk 0:02:31.7]} 12. c4 {[%clk 0:02:48.4]} 12... d4 {[%clk 0:02:28.9]} 13.
Ne4 {[%clk 0:02:46.7]} 13... Nxe4 {[%clk 0:02:27.8]} 14. Rxe4 {[%clk 0:02:46.3]}
14... e5 {[%clk 0:02:28.2]} 15. g4 {[%clk 0:02:38.8]} 15... f5 {[%clk
0:02:25.6]} 16. gxf5 {[%clk 0:02:38.3]} 16... Bxf5 {[%clk 0:02:24.8]} 17. Re1
{[%clk 0:02:38.8]} 17... Rae8 {[%clk 0:02:21.2]} 18. Nh4 {[%clk 0:02:35.7]}
18... Bc8 {[%clk 0:02:17.9]} 19. Qh5 {[%clk 0:02:29.2]} 19... Qf6 {[%clk
0:02:13.3]} 20. Rf1 {[%clk 0:02:18.1]} 20... Be6 {[%clk 0:02:04.9]} 21. Bg5
{[%clk 0:02:13.8]} 21... Qf7 {[%clk 0:01:59.8]} 22. Qxf7+ {[%clk 0:02:13.9]}
22... Rxf7 {[%clk 0:01:57.8]} 23. Rae1 {[%clk 0:02:07.1]} 23... h6 {[%clk
0:01:56.2]} 24. Bd2 {[%clk 0:02:02.2]} 24... g5 {[%clk 0:01:54.3]} 25. Nf3
{[%clk 0:01:57.7]} 25... Bxh3 {[%clk 0:01:51.7]} 26. Bxh3 {[%clk 0:01:35]} 26...
Rxf3 {[%clk 0:01:49.3]} 27. Bg2 {[%clk 0:01:29.7]} 27... Rxd3 {[%clk 0:01:47.6]}
28. Re2 {[%clk 0:01:28.5]} 28... Nd8 {[%clk 0:01:42.3]} 29. Kh2 {[%clk
0:01:16.2]} 29... g4 {[%clk 0:01:36.9]} 30. f3 {[%clk 0:00:49.1]} 30... h5
{[%clk 0:01:30.4]} 31. fxg4 {[%clk 0:00:43.6]} 31... hxg4 {[%clk 0:01:29.6]} 32.
Rf5 {[%clk 0:00:39.2]} 32... Nf7 {[%clk 0:01:25.1]} 33. Bd5 {[%clk 0:00:33.2]}
33... Re7 {[%clk 0:01:18.4]} 34. Bg5 {[%clk 0:00:15.1]} 34... Rc7 {[%clk
0:01:11.7]} 35. Rexe5 {[%clk 0:00:14.3]} 35... Kg7 {[%clk 0:01:09.1]} 36. Bf6+
{[%clk 0:00:13.1]} 36... Kg6 {[%clk 0:01:06.7]} 37. Be4 {[%clk 0:00:08.7]} 37...
Nxe5 {[%clk 0:01:03.2]} 38. Bxe5 {[%clk 0:00:09.6]} 38... Rd2+ {[%clk
0:01:00.4]} 39. Kg3 {[%clk 0:00:10]} 39... Kh6 {[%clk 0:00:58.1]} 40. Bxc7
{[%clk 0:00:02.9]} 40... Rxb2 {[%clk 0:00:56.4]} 41. Bf4+ {[%clk 0:00:01.1]}
41... Kg7 {[%clk 0:00:54.3]} 42. Kxg4 {[%clk 0:00:02]} 42... Rxa2 {[%clk
0:00:52.5]} 43. Rg5+ {[%clk 0:00:02.9]} 43... Kf6 {[%clk 0:00:50.8]} 44. Be5+
{[%clk 0:00:01.9]} 44... Kf7 {[%clk 0:00:46.1]} 45. Bd5+ {[%clk 0:00:02.8]}
45... Kf8 {[%clk 0:00:43.9]} 46. Rg8+ {[%clk 0:00:03.2]} 46... Ke7 {[%clk
0:00:43.1]} 47. Bf4 {[%clk 0:00:04.1]} 47... b5 {[%clk 0:00:39.4]} 48. Rg7+
{[%clk 0:00:04.3]} 48... Kf6 {[%clk 0:00:37.9]} 49. Rc7 {[%clk 0:00:04.4]} 49...
bxc4 {[%clk 0:00:36.5]} 50. Rc6+ {[%clk 0:00:05]} 50... Ke7 {[%clk 0:00:34.6]}
51. Bxc4 {[%clk 0:00:05.9]} 51... Ra4 {[%clk 0:00:32.3]} 52. Rxc5 {[%clk
0:00:06]} 52... d3 {[%clk 0:00:30.2]} 53. Bxd3 {[%clk 0:00:06.1]} 53... Rd4
{[%clk 0:00:29.2]} 54. Bf5 {[%clk 0:00:06.3]} 54... a5 {[%clk 0:00:28]} 55. Rc7+
{[%clk 0:00:06.6]} 55... Kf6 {[%clk 0:00:26.8]} 56. Rc6+ {[%clk 0:00:05.5]}
56... Ke7 {[%clk 0:00:24.4]} 57. Ra6 {[%clk 0:00:05.4]} 57... a4 {[%clk
0:00:22.6]} 58. Kg5 {[%clk 0:00:05.8]} 58... Rd1 {[%clk 0:00:20.6]} 59. Ra7+
{[%clk 0:00:05.8]} 59... Kd8 {[%clk 0:00:19]} 60. Kf6 {[%clk 0:00:05.8]} 60...
Rd6+ {[%clk 0:00:10.9]} 61. Bxd6 {[%clk 0:00:05.1]} 1-0

[Event "*** Titled Tuesday Blitz"]
[Site "Chess.com"]
[Date "2020.05.19"]
[Round "3"]
[White "GOGIEFF"]
[Black "Witik"]
[Result "0-1"]
[WhiteElo "2911"]
[BlackElo "2652"]
[TimeControl "180+1"]
[EndTime "12:30:23 PDT"]
[Termination "Witik won by resignation"]

1. d4 {[%clk 0:03:00.9]} 1... Nf6 {[%clk 0:02:50]} 2. c4 {[%clk 0:02:59.7]} 2...
d6 {[%clk 0:02:47.3]} 3. Nc3 {[%clk 0:02:57.3]} 3... g6 {[%clk 0:02:45.4]} 4. e4
{[%clk 0:02:56]} 4... Bg7 {[%clk 0:02:45.2]} 5. f3 {[%clk 0:02:56]} 5... O-O
{[%clk 0:02:45.1]} 6. Nge2 {[%clk 0:02:56.1]} 6... e5 {[%clk 0:02:39.4]} 7. d5
{[%clk 0:02:55.2]} 7... c6 {[%clk 0:02:39.6]} 8. Be3 {[%clk 0:02:53.8]} 8...
cxd5 {[%clk 0:02:38.6]} 9. cxd5 {[%clk 0:02:53.9]} 9... a6 {[%clk 0:02:37.2]}
10. g4 {[%clk 0:02:45.1]} 10... h5 {[%clk 0:02:33.8]} 11. g5 {[%clk 0:02:41.1]}
11... Nh7 {[%clk 0:02:33.7]} 12. Qd2 {[%clk 0:02:31.5]} 12... f6 {[%clk
0:02:29.7]} 13. gxf6 {[%clk 0:02:28.7]} 13... Qxf6 {[%clk 0:02:29.4]} 14. Bg2
{[%clk 0:02:23]} 14... Qh4+ {[%clk 0:01:48.4]} 15. Bf2 {[%clk 0:02:21.3]} 15...
Qg5 {[%clk 0:01:44.9]} 16. Rg1 {[%clk 0:02:03.5]} 16... Qxd2+ {[%clk 0:01:38.6]}
17. Kxd2 {[%clk 0:02:04.4]} 17... Bh6+ {[%clk 0:01:38.8]} 18. Be3 {[%clk
0:02:00.1]} 18... Bxe3+ {[%clk 0:01:37.5]} 19. Kxe3 {[%clk 0:02:01]} 19... Kg7
{[%clk 0:01:23.9]} 20. Rac1 {[%clk 0:01:54.7]} 20... Nd7 {[%clk 0:01:19]} 21.
Bh3 {[%clk 0:01:48.7]} 21... Nb6 {[%clk 0:01:19.1]} 22. Bxc8 {[%clk 0:01:42.5]}
22... Raxc8 {[%clk 0:01:20]} 23. b3 {[%clk 0:01:43.1]} 23... Rf7 {[%clk
0:01:00.1]} 24. Na4 {[%clk 0:01:37.1]} 24... Rxc1 {[%clk 0:00:53.2]} 25. Rxc1
{[%clk 0:01:38]} 25... Nxa4 {[%clk 0:00:44]} 26. bxa4 {[%clk 0:01:38.9]} 26...
Ng5 {[%clk 0:00:41.4]} 27. f4 {[%clk 0:01:33.8]} 27... exf4+ {[%clk 0:00:40.9]}
28. Nxf4 {[%clk 0:01:34.7]} 28... Re7 {[%clk 0:00:39.1]} 29. Rc4 {[%clk
0:01:34.5]} 29... h4 {[%clk 0:00:36]} 30. a5 {[%clk 0:01:30.4]} 30... Kf6 {[%clk
0:00:35.8]} 31. a4 {[%clk 0:01:24.3]} 31... Re8 {[%clk 0:00:26.9]} 32. Rb4
{[%clk 0:01:23.4]} 32... Re7 {[%clk 0:00:26.9]} 33. Ng2 {[%clk 0:01:16.9]} 33...
h3 {[%clk 0:00:24.7]} 34. Nf4 {[%clk 0:01:16.8]} 34... Kg7 {[%clk 0:00:22.9]}
35. Ne2 {[%clk 0:01:08.7]} 35... Rf7 {[%clk 0:00:18.6]} 36. Nd4 {[%clk
0:01:01.7]} 36... Kh6 {[%clk 0:00:15.7]} 37. Ne6 {[%clk 0:00:44]} 37... Nxe6
{[%clk 0:00:03.8]} 38. dxe6 {[%clk 0:00:43.3]} 38... Re7 {[%clk 0:00:04.7]} 39.
Kd4 {[%clk 0:00:36.7]} 39... Rxe6 {[%clk 0:00:05.2]} 40. Rb3 {[%clk 0:00:35.9]}
40... Kg5 {[%clk 0:00:03.7]} 41. Rxh3 {[%clk 0:00:34.8]} 41... Re5 {[%clk
0:00:04.4]} 42. Rg3+ {[%clk 0:00:25.8]} 42... Kf6 {[%clk 0:00:04.6]} 43. Rb3
{[%clk 0:00:23.7]} 43... Rxa5 {[%clk 0:00:04.8]} 44. Rxb7 {[%clk 0:00:23.9]}
44... Ke6 {[%clk 0:00:04.9]} 45. Rb4 {[%clk 0:00:22]} 45... Rh5 {[%clk
0:00:04.6]} 46. Rb6 {[%clk 0:00:22.1]} 46... Ra5 {[%clk 0:00:04.7]} 47. Rb4
{[%clk 0:00:22.1]} 47... Rh5 {[%clk 0:00:04.9]} 48. Rb2 {[%clk 0:00:22.2]} 48...
Ra5 {[%clk 0:00:04.8]} 49. Ra2 {[%clk 0:00:22.6]} 49... Rh5 {[%clk 0:00:04.6]}
50. Rg2 {[%clk 0:00:22.2]} 50... Kf6 {[%clk 0:00:03.9]} 51. Rf2+ {[%clk
0:00:20]} 51... Ke6 {[%clk 0:00:04.1]} 52. Ra2 {[%clk 0:00:18.4]} 52... Ra5
{[%clk 0:00:03.8]} 53. Ke3 {[%clk 0:00:18.4]} 53... Ke5 {[%clk 0:00:04.2]} 54.
Kf3 {[%clk 0:00:15.4]} 54... Rc5 {[%clk 0:00:04.2]} 55. Ra3 {[%clk 0:00:14.9]}
55... Rc4 {[%clk 0:00:04.3]} 56. Kg4 {[%clk 0:00:14.6]} 56... Rxe4+ {[%clk
0:00:04.2]} 57. Kg5 {[%clk 0:00:15.1]} 57... Re2 {[%clk 0:00:05.1]} 58. h4
{[%clk 0:00:12.5]} 58... Rg2+ {[%clk 0:00:05.1]} 59. Kh6 {[%clk 0:00:12.9]}
59... d5 {[%clk 0:00:05.8]} 60. Rb3 {[%clk 0:00:13.3]} 60... d4 {[%clk
0:00:05.7]} 61. Rb6 {[%clk 0:00:13.3]} 61... d3 {[%clk 0:00:06.2]} 62. Rb8
{[%clk 0:00:08.9]} 62... d2 {[%clk 0:00:06.5]} 63. Rd8 {[%clk 0:00:09]} 63...
Ke4 {[%clk 0:00:06.9]} 64. a5 {[%clk 0:00:08.8]} 64... Ke3 {[%clk 0:00:07.1]}
65. Re8+ {[%clk 0:00:09.1]} 65... Kf2 {[%clk 0:00:07.2]} 66. Rd8 {[%clk
0:00:09.2]} 66... Ke1 {[%clk 0:00:07.5]} 67. Re8+ {[%clk 0:00:09.5]} 67... Re2
{[%clk 0:00:07.4]} 68. Rd8 {[%clk 0:00:05.5]} 68... d1=Q {[%clk 0:00:07.4]} 69.
Rxd1+ {[%clk 0:00:06.4]} 69... Kxd1 {[%clk 0:00:08]} 70. Kxg6 {[%clk 0:00:07.2]}
70... Re5 {[%clk 0:00:06.1]} 71. h5 {[%clk 0:00:07.5]} 71... Rxa5 {[%clk
0:00:06.2]} 72. h6 {[%clk 0:00:08]} 72... Ra2 {[%clk 0:00:06.5]} 0-1

[Event "*** Titled Tuesday Blitz"]
[Site "Chess.com"]
[Date "2020.05.19"]
[Round "3"]
[White "jeetjain"]
[Black "Azatic"]
[Result "0-1"]
[WhiteElo "2356"]
[BlackElo "2606"]
[TimeControl "180+1"]
[EndTime "12:30:26 PDT"]
[Termination "Azatic won by resignation"]

1. e4 {[%clk 0:03:00.9]} 1... c5 {[%clk 0:02:59.4]} 2. Nf3 {[%clk 0:03:00.9]}
2... e6 {[%clk 0:02:59.1]} 3. d4 {[%clk 0:03:00.7]} 3... cxd4 {[%clk 0:03:00]}
4. Nxd4 {[%clk 0:03:01.6]} 4... a6 {[%clk 0:03:00.5]} 5. c4 {[%clk 0:03:01.6]}
5... Qc7 {[%clk 0:03:00.8]} 6. Nc3 {[%clk 0:03:01.8]} 6... Nf6 {[%clk
0:03:01.2]} 7. Qe2 {[%clk 0:03:01.5]} 7... d6 {[%clk 0:03:00.4]} 8. g3 {[%clk
0:03:01.7]} 8... b6 {[%clk 0:02:59.9]} 9. Bg2 {[%clk 0:03:01.7]} 9... Bb7 {[%clk
0:03:00.3]} 10. O-O {[%clk 0:03:01.5]} 10... Nbd7 {[%clk 0:03:00.5]} 11. Bd2
{[%clk 0:02:53.1]} 11... Rc8 {[%clk 0:02:59.8]} 12. b3 {[%clk 0:02:53.1]} 12...
Be7 {[%clk 0:02:56.9]} 13. Rac1 {[%clk 0:02:53]} 13... O-O {[%clk 0:02:56.2]}
14. f4 {[%clk 0:02:52.2]} 14... Rfe8 {[%clk 0:02:50.7]} 15. f5 {[%clk
0:02:47.9]} 15... e5 {[%clk 0:02:20.6]} 16. Nc2 {[%clk 0:02:45.7]} 16... Qb8
{[%clk 0:02:11.2]} 17. g4 {[%clk 0:02:32.3]} 17... h6 {[%clk 0:02:10.8]} 18. h4
{[%clk 0:02:26.2]} 18... Nh7 {[%clk 0:02:09.6]} 19. Qf2 {[%clk 0:02:23.4]} 19...
b5 {[%clk 0:01:54.2]} 20. cxb5 {[%clk 0:02:05.4]} 20... axb5 {[%clk 0:01:50.6]}
21. Qg3 {[%clk 0:02:04.7]} 21... Rxc3 {[%clk 0:01:16.3]} 22. Bxc3 {[%clk
0:02:04.3]} 22... Qd8 {[%clk 0:01:16]} 23. g5 {[%clk 0:01:38.5]} 23... hxg5
{[%clk 0:01:13.5]} 24. h5 {[%clk 0:01:39.1]} 24... Nhf6 {[%clk 0:01:06.8]} 25.
Qh3 {[%clk 0:01:27.6]} 25... g4 {[%clk 0:00:58.3]} 26. Qh2 {[%clk 0:01:17]}
26... Nxe4 {[%clk 0:00:45.5]} 27. Be1 {[%clk 0:01:13.4]} 27... Bg5 {[%clk
0:00:40.6]} 28. Rd1 {[%clk 0:01:12.2]} 28... Qb6+ {[%clk 0:00:35]} 29. Kh1
{[%clk 0:01:10.4]} 29... Ndf6 {[%clk 0:00:34.7]} 30. Nb4 {[%clk 0:01:01.8]}
30... Rc8 {[%clk 0:00:33.8]} 31. Bh4 {[%clk 0:00:54.5]} 31... Bxh4 {[%clk
0:00:26]} 32. Qxh4 {[%clk 0:00:55.4]} 32... g3 {[%clk 0:00:26.1]} 33. Nd3 {[%clk
0:00:53]} 33... Rc2 {[%clk 0:00:22.1]} 34. h6 {[%clk 0:00:50.5]} 34... Nf2+
{[%clk 0:00:16.3]} 35. Nxf2 {[%clk 0:00:50]} 35... Rxf2 {[%clk 0:00:16.3]} 36.
Rxf2 {[%clk 0:00:48.2]} 36... Qxf2 {[%clk 0:00:14.5]} 37. Bxb7 {[%clk
0:00:46.2]} 37... g2+ {[%clk 0:00:14.5]} 38. Bxg2 {[%clk 0:00:45.1]} 38... Qxh4+
{[%clk 0:00:14.8]} 39. Kg1 {[%clk 0:00:46]} 39... gxh6 {[%clk 0:00:15.2]} 40.
Rxd6 {[%clk 0:00:45.5]} 40... Kg7 {[%clk 0:00:15.6]} 41. a4 {[%clk 0:00:44.9]}
41... Qe1+ {[%clk 0:00:15.5]} 42. Kh2 {[%clk 0:00:44.7]} 42... bxa4 {[%clk
0:00:15.7]} 43. bxa4 {[%clk 0:00:44.6]} 43... Ng4+ {[%clk 0:00:15.6]} 44. Kh3
{[%clk 0:00:45.1]} 44... Nf2+ {[%clk 0:00:15.9]} 45. Kh2 {[%clk 0:00:45.1]}
45... Ne4 {[%clk 0:00:16.1]} 46. f6+ {[%clk 0:00:43]} 46... Kg6 {[%clk
0:00:14.8]} 47. Rd3 {[%clk 0:00:42.4]} 47... Ng5 {[%clk 0:00:12.6]} 48. Ra3
{[%clk 0:00:37.2]} 48... Qa5 {[%clk 0:00:12.7]} 49. Bf1 {[%clk 0:00:35.8]} 49...
e4 {[%clk 0:00:12.6]} 50. Bb5 {[%clk 0:00:35.2]} 50... h5 {[%clk 0:00:12.6]} 51.
Kg3 {[%clk 0:00:33.1]} 51... Qc7+ {[%clk 0:00:12]} 52. Kf2 {[%clk 0:00:33.1]}
52... Qf4+ {[%clk 0:00:12.1]} 53. Ke2 {[%clk 0:00:33.4]} 53... Qg4+ {[%clk
0:00:12.1]} 54. Kd2 {[%clk 0:00:32.1]} 54... Qg2+ {[%clk 0:00:11.8]} 55. Kc3
{[%clk 0:00:31.7]} 55... e3 {[%clk 0:00:11.9]} 56. Bd3+ {[%clk 0:00:30.1]} 56...
Kh6 {[%clk 0:00:11]} 57. a5 {[%clk 0:00:29.4]} 57... e2 {[%clk 0:00:10.8]} 58.
Bxe2 {[%clk 0:00:27.9]} 58... Qxe2 {[%clk 0:00:11.7]} 59. a6 {[%clk 0:00:28.8]}
59... Qe3+ {[%clk 0:00:11.8]} 60. Kb2 {[%clk 0:00:29.2]} 60... Qb6+ {[%clk
0:00:11.8]} 61. Ka2 {[%clk 0:00:29.2]} 61... Qa7 {[%clk 0:00:11.9]} 62. Ra5
{[%clk 0:00:28.7]} 62... Ne6 {[%clk 0:00:11.8]} 63. Kb3 {[%clk 0:00:28.6]} 63...
Nc7 {[%clk 0:00:11.9]} 64. Kc4 {[%clk 0:00:27.7]} 64... Nxa6 {[%clk 0:00:11.9]}
65. Kb5 {[%clk 0:00:28.6]} 65... Qb7+ {[%clk 0:00:11.8]} 66. Ka4 {[%clk
0:00:29.3]} 66... Qb6 {[%clk 0:00:11.7]} 67. Rb5 {[%clk 0:00:26.7]} 67... Qc6
{[%clk 0:00:11.7]} 68. Ka5 {[%clk 0:00:27.1]} 68... Qxb5+ {[%clk 0:00:11.6]} 69.
Kxb5 {[%clk 0:00:27.3]} 69... Nc7+ {[%clk 0:00:12.5]} 70. Kb6 {[%clk 0:00:27.9]}
70... Ne8 {[%clk 0:00:13.4]} 71. Kc6 {[%clk 0:00:28]} 71... Nxf6 {[%clk
0:00:14.3]} 72. Kd6 {[%clk 0:00:28.9]} 72... Kg5 {[%clk 0:00:15.2]} 73. Ke5
{[%clk 0:00:29.8]} 73... h4 {[%clk 0:00:16.1]} 0-1